bitfinex-derivatives/quotes_BTCF0:USTF0_20240825
["timestamp","ask_amount","ask_price","bid_price","bid_amount"]
[1724547072248,0.077866,64187.0,64186.0,0.12455407]
[1724547072479,0.077906,64187.0,64186.0,0.12455407]
[1724547072952,0.077906,64187.0,64186.0,0.12655407]
[1724547073151,0.077906,64187.0,64186.0,0.079867]
[1724547073352,4e-05,64187.0,64186.0,0.079867]
[1724547075454,0.077906,64187.0,64186.0,0.079867]
[1724547075958,4e-05,64187.0,64186.0,0.079867]
[1724547080653,4e-05,64187.0,64186.0,0.10421221]
[1724547081045,4e-05,64187.0,64186.0,0.12647645]
[1724547081451,4e-05,64187.0,64186.0,0.079867]
[1724547084048,4e-05,64187.0,64186.0,0.04860945]
[1724547084049,0.077906,64187.0,64186.0,0.04860945]
[1724547084257,0.077906,64187.0,64186.0,0.00204]
[1724547089401,0.545306,64187.0,64186.0,0.00204]
[1724547089686,0.077906,64187.0,64186.0,0.00204]
[1724547091762,0.438706,64187.0,64186.0,0.00204]
[1724547094862,0.36084,64187.0,64186.0,0.00204]
[1724547095166,0.36084,64187.0,64186.0,0.12651645]
[1724547095554,0.36084,64187.0,64186.0,0.079907]
[1724547096663,0.36084,64187.0,64186.0,0.14215643]
[1724547096875,0.36084,64187.0,64186.0,0.10425319]
[1724547097663,0.36084,64187.0,64186.0,0.079907]
[1724547099357,0.3608,64197.0,64186.0,1.52245268]
[1724547099589,0.00481737,64194.0,64193.0,0.06222]
[1724547099865,0.00481737,64194.0,64186.0,0.630707]
[1724547099866,0.0002336,64194.0,64189.0,0.07783047]
[1724547100072,0.0002336,64194.0,64193.0,0.06225857]
[1724547100370,0.0002336,64194.0,64193.0,0.14010006]
[1724547100557,0.0002336,64194.0,64193.0,0.124798]
[1724547101270,0.0002336,64194.0,64193.0,0.18698543]
[1724547101467,0.0072336,64194.0,64193.0,0.18698543]
[1724547101870,0.0142336,64194.0,64193.0,0.18698543]
[1724547102275,0.0142336,64194.0,64193.0,0.124798]
[1724547108471,0.0142336,64194.0,64193.0,0.204798]
[1724547110080,0.00463781,64197.0,64196.0,0.077855]
[1724547110460,0.3608,64203.0,64202.0,0.077848]
[1724547110680,0.438639,64209.0,64199.0,0.3608]
[1724547111075,0.05375434,64207.0,64199.0,0.3608]
[1724547111675,0.05375434,64207.0,64205.0,0.077843]
[1724547111979,0.06675434,64207.0,64205.0,0.077843]
[1724547112972,0.05375434,64207.0,64205.0,0.077843]
[1724547113177,0.06775434,64207.0,64205.0,0.077843]
[1724547113985,0.07875434,64207.0,64205.0,0.078843]
[1724547114376,0.07875434,64207.0,64206.0,0.077843]
[1724547115469,0.06475434,64207.0,64206.0,0.077843]
[1724547115677,0.07775434,64207.0,64206.0,0.078843]
[1724547115874,0.08075434,64207.0,64206.0,0.079843]
[1724547118076,0.06775434,64207.0,64206.0,0.078843]
[1724547118276,0.06775434,64207.0,64206.0,0.079843]
[1724547118277,0.07675434,64207.0,64206.0,0.079843]
[1724547118979,0.018,64207.0,64206.0,0.440643]
[1724547119775,0.018,64207.0,64206.0,0.079843]
[1724547120723,0.095842,64207.0,64206.0,0.002]
[1724547121077,0.144542,64207.0,64206.0,0.002]
[1724547121387,0.25272849,64207.0,64206.0,0.002]
[1724547122187,0.144542,64207.0,64206.0,0.002]
[1724547122886,0.4275,64207.0,64206.0,0.002]
[1724547123097,0.4275,64207.0,64206.0,0.079843]
[1724547123592,0.3788,64207.0,64206.0,0.079843]
[1724547125888,0.018,64207.0,64206.0,0.079843]
[1724547127992,0.25662706,64207.0,64206.0,0.079843]
[1724547128312,0.077852,64198.0,64197.0,0.0002336]
[1724547128488,0.19,64196.0,64191.0,0.00454221]
[1724547128688,0.3608,64192.0,64191.0,0.00454221]
[1724547128992,0.44669762,64192.0,64187.0,0.00012]
[1724547129189,0.14172706,64191.0,64187.0,0.00012]
[1724547129379,0.077863,64189.0,64187.0,0.00012]
[1724547129599,0.14172706,64188.0,64187.0,0.00012]
[1724547129873,0.14179231,64188.0,64187.0,0.00012]
[1724547130491,0.08596287,64188.0,64187.0,0.00012]
[1724547130987,4e-05,64188.0,64187.0,0.0467051]
[1724547131497,0.00104,64188.0,64187.0,0.0647051]
[1724547132095,0.00104,64188.0,64187.0,0.0547051]
[1724547132295,0.00204,64188.0,64187.0,0.01712]
[1724547132487,0.00204,64188.0,64187.0,0.0637051]
[1724547132688,0.36284,64188.0,64187.0,0.01712]
[1724547132890,0.36284,64188.0,64187.0,0.0637051]
[1724547133393,0.36284,64188.0,64187.0,0.1415711]
[1724547133599,0.00204,64188.0,64187.0,0.094986]
[1724547133793,0.00204,64188.0,64187.0,0.192586]
[1724547134397,0.00204,64188.0,64187.0,0.72217343]
[1724547134698,0.00204,64188.0,64187.0,1.059986]
[1724547134992,0.3610336,64195.0,64187.0,1.059986]
[1724547134993,0.3610336,64195.0,64193.0,0.077857]
[1724547135192,0.3610336,64195.0,64194.0,0.077857]
[1724547135697,0.36557658,64195.0,64194.0,0.077857]
[1724547136353,0.36557658,64195.0,64194.0,4e-05]
[1724547136603,0.80423258,64195.0,64194.0,4e-05]
[1724547137691,0.80423258,64195.0,64194.0,0.00404]
[1724547138694,0.80423258,64195.0,64194.0,0.00704]
[1724547139288,0.44343258,64195.0,64194.0,0.00704]
[1724547139495,0.44343258,64195.0,64194.0,0.00404]
[1724547139695,0.44443258,64195.0,64194.0,0.00404]
[1724547140406,0.44443258,64195.0,64194.0,4e-05]
[1724547140590,0.44743258,64195.0,64194.0,4e-05]
[1724547141197,0.45043258,64195.0,64194.0,4e-05]
[1724547141598,0.077837,64211.0,64194.0,1.260577]
[1724547141798,0.049,64214.0,64210.0,0.3608]
[1724547141989,0.0484,64213.0,64210.0,0.3608]
[1724547142498,0.0484,64213.0,64210.0,0.438637]
[1724547143290,0.3608,64211.0,64205.0,0.0002336]
[1724547143799,0.3648,64211.0,64205.0,0.0002336]
[1724547143990,4e-05,64206.0,64205.0,0.0002336]
[1724547144796,4e-05,64206.0,64205.0,0.0780776]
[1724547144997,0.08593441,64206.0,64205.0,0.0790776]
[1724547145403,0.09393441,64206.0,64205.0,0.0800776]
[1724547147198,0.10193441,64206.0,64205.0,0.0800776]
[1724547147899,0.01604,64206.0,64205.0,0.0800776]
[1724547153402,0.01604,64206.0,64205.0,0.6251616]
[1724547153798,0.01604,64206.0,64205.0,0.5473176]
[1724547154701,0.05364912,64214.0,64205.0,0.9473176]
[1724547154702,0.049,64214.0,64205.0,0.9473176]
[1724547155003,0.049,64214.0,64213.0,0.438634]
[1724547155604,0.049,64214.0,64213.0,0.438674]
[1724547155805,0.055,64214.0,64213.0,0.438674]
[1724547157405,0.055,64214.0,64213.0,0.439674]
[1724547158108,0.061,64214.0,64213.0,0.440674]
[1724547159109,0.061,64214.0,64213.0,0.630674]
[1724547159308,0.012,64214.0,64213.0,0.630674]
[1724547163210,0.012,64214.0,64213.0,0.440674]
[1724547167812,0.012,64214.0,64213.0,0.079874]
[1724547168013,0.012,64214.0,64213.0,0.440674]
[1724547169074,0.15370069,64214.0,64213.0,0.440674]
[1724547169806,0.15370069,64214.0,64213.0,0.079874]
[1724547170113,0.15370069,64214.0,64213.0,0.440674]
[1724547171716,0.15370069,64214.0,64213.0,0.079874]
[1724547171911,0.15370069,64214.0,64213.0,0.440674]
[1724547172126,0.089833,64214.0,64213.0,0.36284]
[1724547174115,0.18254859,64214.0,64213.0,0.36284]
[1724547177739,0.089833,64214.0,64213.0,0.36284]
[1724547179917,0.089833,64214.0,64205.0,0.0780776]
[1724547179918,0.957033,64214.0,64205.0,0.0780776]
[1724547180113,0.3608,64206.0,64205.0,0.0780776]
[1724547180313,0.45355552,64206.0,64205.0,0.0780776]
[1724547180519,0.55225552,64206.0,64205.0,0.0780776]
[1724547180716,0.55229552,64206.0,64205.0,0.0780776]
[1724547181022,0.45954,64206.0,64205.0,0.0780776]
[1724547182429,0.45954,64206.0,64205.0,0.12473231]
[1724547182617,0.46454,64206.0,64205.0,0.12473231]
[1724547183117,0.46954,64206.0,64205.0,0.0780776]
[1724547183320,0.46954,64206.0,64205.0,0.0002336]
[1724547183321,0.547383,64206.0,64205.0,0.0002336]
[1724547184426,1.014623,64206.0,64205.0,0.0002336]
[1724547184922,1.01919011,64206.0,64205.0,0.0002336]
[1724547189332,1.09703311,64206.0,64205.0,0.0002336]
[1724547189525,1.09703311,64206.0,64196.0,0.3608]
[1724547189526,0.077854,64197.0,64196.0,0.3608]
[1724547189833,0.077858,64194.0,64193.0,0.077858]
[1724547190619,0.077898,64194.0,64193.0,0.077858]
[1724547192325,0.078898,64194.0,64193.0,0.092858]
[1724547192529,0.079898,64194.0,64193.0,0.092858]
[1724547192929,0.08359087,64194.0,64193.0,0.007]
[1724547193123,0.08459087,64194.0,64193.0,0.013]
[1724547197778,0.077858,64193.0,64190.0,0.0002]
[1724547197933,0.077861,64191.0,64190.0,0.0002]
[1724547198534,0.157901,64191.0,64190.0,0.0002]
[1724547198833,0.157901,64191.0,64187.0,0.0002336]
[1724547199043,0.518665,64188.0,64187.0,0.0002336]
[1724547200129,0.518665,64188.0,64187.0,0.0112336]
[1724547200633,0.438665,64188.0,64187.0,0.0112336]
[1724547200838,0.078865,64188.0,64187.0,0.0112336]
[1724547201137,0.439665,64188.0,64187.0,0.0112336]
[1724547201441,0.440665,64188.0,64187.0,0.0172336]
[1724547201928,0.079865,64188.0,64187.0,0.0172336]
[1724547202133,0.440665,64188.0,64187.0,0.0172336]
[1724547206134,0.440705,64188.0,64187.0,0.0172336]
[1724547206737,0.079905,64188.0,64187.0,0.0172336]
[1724547206941,0.440705,64188.0,64187.0,0.0172336]
[1724547208548,0.079905,64188.0,64187.0,0.0172336]
[1724547208740,0.440705,64188.0,64187.0,0.0172336]
[1724547209241,0.4788373,64188.0,64187.0,0.0172336]
[1724547209441,0.1180373,64188.0,64187.0,0.0172336]
[1724547209940,0.4788373,64188.0,64187.0,0.0172336]
[1724547212248,0.440705,64188.0,64187.0,0.0172336]
[1724547214043,0.079905,64188.0,64187.0,0.0172336]
[1724547214239,0.440705,64188.0,64187.0,0.0172336]
[1724547217546,0.908105,64188.0,64187.0,0.0172336]
[1724547218549,0.440705,64188.0,64187.0,0.0172336]
[1724547219144,0.079905,64188.0,64187.0,0.0172336]
[1724547219454,0.440705,64188.0,64187.0,0.0172336]
[1724547222555,0.520705,64188.0,64187.0,0.0172336]
[1724547222856,0.159905,64188.0,64187.0,0.0172336]
[1724547223063,0.520705,64188.0,64187.0,0.0172336]
[1724547228861,0.440705,64188.0,64187.0,0.0172336]
[1724547229044,0.520705,64188.0,64187.0,0.0172336]
[1724547236656,0.159905,64188.0,64187.0,0.0172336]
[1724547236860,0.520705,64188.0,64187.0,0.0172336]
[1724547237959,1.06597,64188.0,64187.0,0.0172336]
[1724547238264,1.06597,64188.0,64176.0,0.51650947]
[1724547238265,0.077871,64183.0,64182.0,0.0466574]
[1724547238564,0.157871,64183.0,64182.0,0.0466574]
[1724547238757,0.205871,64183.0,64182.0,0.0466574]
[1724547239259,0.205871,64183.0,64176.0,0.3608]
[1724547239260,0.077911,64183.0,64179.0,0.06209025]
[1724547239565,0.00204,64183.0,64182.0,0.027]
[1724547241269,0.00665976,64183.0,64182.0,0.027]
[1724547241464,0.08453076,64183.0,64182.0,0.07373301]
[1724547241660,0.08453076,64183.0,64182.0,0.013]
[1724547241661,0.18023076,64183.0,64182.0,0.013]
[1724547241856,0.18123076,64183.0,64182.0,0.013]
[1724547242473,0.18023076,64183.0,64182.0,0.013]
[1724547242664,0.26123076,64183.0,64182.0,0.013]
[1724547247072,0.62203076,64183.0,64182.0,0.013]
[1724547249361,0.66016726,64183.0,64182.0,0.013]
[1724547251376,0.8148188,64183.0,64182.0,0.013]
[1724547252371,0.62203076,64183.0,64182.0,0.013]
[1724547253467,0.62203076,64183.0,64182.0,0.16195449]
[1724547253468,0.36745976,64183.0,64182.0,0.16195449]
[1724547253671,0.00665976,64183.0,64182.0,0.47602148]
[1724547253980,0.00665976,64183.0,64182.0,0.090872]
[1724547254775,0.00665976,64183.0,64182.0,0.013]
[1724547255188,0.00665976,64183.0,64182.0,0.05969439]
[1724547256078,0.00665976,64183.0,64182.0,0.013]
[1724547256884,0.00665976,64183.0,64182.0,0.090868]
[1724547258380,0.44532676,64183.0,64182.0,0.013]
[1724547258879,0.36745976,64183.0,64182.0,0.013]
[1724547259085,0.44745976,64183.0,64182.0,0.013]
[1724547259302,0.36745976,64183.0,64182.0,0.013]
[1724547259476,0.08665976,64183.0,64182.0,0.013]
[1724547260987,0.44745976,64183.0,64182.0,0.013]
[1724547261191,0.36745976,64183.0,64182.0,0.0083936]
[1724547261577,0.44745976,64183.0,64182.0,0.0083936]
[1724547262891,0.08665976,64183.0,64182.0,0.0083936]
[1724547263992,0.00665976,64183.0,64182.0,0.0083936]
[1724547264177,0.08665976,64183.0,64182.0,0.0083936]
[1724547264378,0.00665976,64183.0,64182.0,0.19061053]
[1724547264582,0.00665976,64183.0,64182.0,0.61367255]
[1724547264787,0.00665976,64183.0,64182.0,0.55141053]
[1724547265911,0.00665976,64183.0,64182.0,0.5270616]
[1724547266104,0.00665976,64183.0,64182.0,0.55140811]
[1724547266890,0.0002336,64187.0,64186.0,0.077863]
[1724547267188,0.0002336,64187.0,64186.0,0.18220914]
[1724547267989,0.10828748,64201.0,64186.0,0.18220914]
[1724547267990,0.10828748,64200.0,64186.0,0.97174614]
[1724547268288,0.08,64199.0,64192.0,0.4408]
[1724547268683,0.09278938,64196.0,64193.0,0.077854]
[1724547269285,0.09278938,64197.0,64193.0,0.077854]
[1724547269885,0.09278938,64197.0,64194.0,0.077853]
[1724547270192,0.09278938,64198.0,64196.0,0.077851]
[1724547270697,0.0780786,64201.0,64196.0,0.077851]
[1724547270698,0.09278938,64199.0,64196.0,0.077851]
[1724547271197,0.001,64200.0,64197.0,0.07785]
[1724547271198,0.09378938,64200.0,64197.0,0.07785]
[1724547271494,0.0780786,64201.0,64197.0,0.07785]
[1724547272084,0.08,64200.0,64197.0,0.07785]
[1724547273092,0.0002336,64201.0,64200.0,0.077846]
[1724547274392,0.0032336,64201.0,64200.0,0.077846]
[1724547274595,0.0062336,64201.0,64200.0,0.077846]
[1724547276196,0.0062336,64201.0,64200.0,0.438646]
[1724547276893,0.0062336,64201.0,64200.0,0.518646]
[1724547279196,0.0062336,64201.0,64200.0,0.518686]
[1724547283309,0.0062336,64201.0,64200.0,0.438686]
[1724547284903,0.0862336,64201.0,64200.0,0.438686]
[1724547287004,0.1640786,64201.0,64200.0,0.36084]
[1724547287500,0.30581167,64201.0,64200.0,0.32475601]
[1724547288206,0.24997986,64201.0,64200.0,0.32475601]
[1724547288406,0.16997986,64201.0,64200.0,0.32475601]
[1724547288611,0.16997986,64201.0,64200.0,0.40475601]
[1724547289582,0.09213486,64201.0,64200.0,0.40475601]
[1724547289898,0.09213486,64201.0,64200.0,0.48260201]
[1724547290404,0.0062336,64201.0,64200.0,0.48260201]
[1724547293709,0.0062336,64201.0,64200.0,0.157846]
[1724547294012,0.0062336,64201.0,64200.0,0.518646]
[1724547294200,0.11444239,64201.0,64200.0,0.518646]
[1724547294407,0.0062336,64201.0,64200.0,0.518646]
[1724547295513,0.11444239,64201.0,64200.0,0.518646]
[1724547296215,0.11444239,64201.0,64200.0,0.438646]
[1724547296405,0.0062336,64201.0,64200.0,0.518646]
[1724547301712,0.09917126,64201.0,64200.0,0.518646]
[1724547302516,0.0062336,64201.0,64200.0,0.518646]
[1724547303714,0.0062336,64201.0,64200.0,0.985926]
[1724547304015,0.0062336,64201.0,64200.0,1.063772]
[1724547305007,0.0062336,64201.0,64200.0,1.11046825]
[1724547305324,0.09293766,64208.0,64207.0,0.077838]
[1724547305507,0.00465912,64209.0,64207.0,0.3608]
[1724547305821,0.09293766,64212.0,64208.0,0.08]
[1724547306122,0.09293766,64213.0,64212.0,0.077832]
[1724547306412,0.0466,64214.0,64213.0,0.07783]
[1724547306413,0.13953766,64214.0,64213.0,0.07783]
[1724547306619,0.14422705,64214.0,64213.0,0.07783]
[1724547307017,0.05128939,64214.0,64213.0,0.07783]
[1724547307320,0.05128939,64214.0,64213.0,0.07787]
[1724547307821,0.06528939,64214.0,64213.0,0.07887]
[1724547308437,0.06528939,64214.0,64213.0,0.07987]
[1724547308438,0.07928939,64214.0,64213.0,0.07987]
[1724547308743,0.1173996,64214.0,64213.0,0.07987]
[1724547309816,0.25652519,64214.0,64213.0,0.07987]
[1724547310015,0.1173996,64214.0,64213.0,0.07987]
[1724547311919,0.25652689,64214.0,64213.0,0.07987]
[1724547312116,0.1174013,64214.0,64213.0,0.07987]
[1724547312524,0.07928939,64214.0,64213.0,0.07987]
[1724547313325,0.07928939,64214.0,64213.0,0.44067]
[1724547317426,0.18764106,64214.0,64213.0,0.44067]
[1724547317632,0.11740036,64214.0,64213.0,0.44067]
[1724547318929,0.19522936,64214.0,64213.0,0.44067]
[1724547320326,0.11740036,64214.0,64213.0,0.44067]
[1724547320827,0.20317476,64214.0,64213.0,0.44067]
[1724547321124,0.24128573,64214.0,64213.0,0.44067]
[1724547321532,0.23323711,64214.0,64213.0,0.44067]
[1724547321727,0.27134829,64214.0,64213.0,0.44067]
[1724547322124,0.14746292,64214.0,64213.0,0.44067]
[1724547322328,0.14746292,64214.0,64213.0,0.52067]
[1724547323327,0.28658851,64214.0,64213.0,0.52067]
[1724547324586,0.07928939,64214.0,64213.0,0.52067]
[1724547325935,0.07928939,64214.0,64213.0,0.28764]
[1724547326138,0.07928939,64214.0,64174.0,0.077878]
[1724547326139,0.46724,64213.0,64195.0,0.00152]
[1724547326357,0.8016,64196.0,64168.0,0.40747553]
[1724547326544,0.8016,64196.0,64149.0,0.04667553]
[1724547326545,0.077886,64168.0,64149.0,0.04667553]
[1724547326744,0.07728963,64163.0,64159.0,0.19]
[1724547326940,0.09274518,64169.0,64159.0,0.19]
[1724547326941,0.07728963,64169.0,64162.0,0.3608]
[1724547327238,0.00023379,64172.0,64162.0,0.3608]
[1724547327744,0.00023379,64172.0,64163.0,0.04667553]
[1724547327936,0.00023379,64172.0,64168.0,0.007]
[1724547328179,0.00023379,64172.0,64170.0,0.3608]
[1724547328538,0.00123379,64172.0,64170.0,0.3608]
[1724547328960,0.00123379,64172.0,64170.0,0.438682]
[1724547329650,0.00123379,64172.0,64170.0,0.441682]
[1724547331462,0.00023379,64172.0,64170.0,0.441682]
[1724547332452,0.00023379,64172.0,64170.0,0.3638]
[1724547332660,0.03008231,64171.0,64170.0,0.3638]
[1724547333760,0.03008231,64171.0,64170.0,0.3608]
[1724547334274,0.00023379,64172.0,64170.0,0.3608]
[1724547334506,4e-05,64171.0,64170.0,0.3608]
[1724547334765,0.36084,64171.0,64159.0,0.24756739]
[1724547335064,0.09219361,64164.0,64159.0,0.24756739]
[1724547335561,0.09219361,64163.0,64159.0,0.24756739]
[1724547335960,4e-05,64160.0,64159.0,0.24756739]
[1724547336665,4e-05,64160.0,64159.0,0.60836739]
[1724547336967,4e-05,64160.0,64159.0,0.61236739]
[1724547338560,4e-05,64160.0,64159.0,0.36503379]
[1724547338963,0.00663459,64160.0,64159.0,0.36503379]
[1724547339166,0.00204,64160.0,64159.0,0.36503379]
[1724547339373,0.00204,64160.0,64159.0,0.00423379]
[1724547340366,0.079935,64160.0,64159.0,0.00423379]
[1724547341133,0.08569541,64160.0,64159.0,0.00423379]
[1724547341760,0.08469541,64160.0,64159.0,0.00023379]
[1724547341962,0.08469541,64160.0,64159.0,0.00323379]
[1724547346772,0.077905,64151.0,64150.0,0.00016663]
[1724547347586,4e-05,64151.0,64150.0,0.07807263]
[1724547347778,4e-05,64151.0,64150.0,0.94571263]
[1724547348265,0.00023379,64157.0,64156.0,0.077899]
[1724547349876,0.00123379,64157.0,64156.0,0.078899]
[1724547351577,0.00223379,64157.0,64156.0,0.078899]
[1724547356276,0.00223379,64157.0,64156.0,0.14116067]
[1724547357284,0.00223379,64157.0,64156.0,0.078899]
[1724547361077,0.00123379,64157.0,64156.0,0.078899]
[1724547362487,0.00023379,64157.0,64156.0,0.27443004]
[1724547362673,0.3608,64164.0,64163.0,0.077891]
[1724547363002,0.3608,64164.0,64163.0,0.1400983]
[1724547363183,0.0958,64181.0,64163.0,1.34705656]
[1724547363480,0.0958,64181.0,64176.0,0.140069]
[1724547363481,0.10143863,64181.0,64176.0,0.140069]
[1724547363672,0.3608,64178.0,64177.0,0.062194]
[1724547363876,0.3608,64178.0,64176.0,0.140069]
[1724547364078,0.3608,64178.0,64176.0,0.077875]
[1724547364385,0.3608,64178.0,64176.0,0.140069]
[1724547364575,4e-05,64177.0,64176.0,0.077875]
[1724547364777,0.03012185,64177.0,64176.0,0.077875]
[1724547365586,0.03012175,64177.0,64176.0,0.077875]
[1724547365888,0.03012175,64177.0,64172.0,0.00023379]
[1724547365889,0.077879,64173.0,64172.0,0.00023379]
[1724547366278,0.10796075,64173.0,64172.0,0.00023379]
[1724547366575,0.10800075,64173.0,64172.0,0.00023379]
[1724547367383,0.18630474,64173.0,64172.0,0.00023379]
[1724547367583,0.14613979,64173.0,64172.0,0.00023379]
[1724547368787,0.44441529,64173.0,64172.0,0.00023379]
[1724547368995,0.91189529,64173.0,64167.0,0.04665195]
[1724547369290,0.077886,64167.0,64166.0,0.04665195]
[1724547369491,0.438686,64167.0,64166.0,0.04665195]
[1724547369679,0.438686,64167.0,64154.0,0.3433336]
[1724547369680,1.22832,64167.0,64163.0,0.04665195]
[1724547369989,0.141,64166.0,64160.0,0.04665195]
[1724547370294,0.3608,64161.0,64160.0,0.04663057]
[1724547370489,0.3608,64161.0,64159.0,0.04663057]
[1724547370490,0.077894,64160.0,64159.0,0.04663057]
[1724547370993,0.077894,64160.0,64158.0,0.04663057]
[1724547371189,0.077894,64160.0,64159.0,0.04663057]
[1724547371488,0.077894,64160.0,64157.0,0.04663057]
[1724547371682,0.077894,64160.0,64156.0,0.04663057]
[1724547372088,0.077894,64160.0,64157.0,0.04663057]
[1724547372889,0.36651535,64161.0,64157.0,0.04663057]
[1724547373085,0.36651535,64161.0,64160.0,0.077894]
[1724547373782,0.36651535,64161.0,64160.0,0.077934]
[1724547376789,0.44440835,64161.0,64160.0,4e-05]
[1724547378497,0.08360835,64161.0,64160.0,4e-05]
[1724547378999,0.91196835,64161.0,64160.0,4e-05]
[1724547379597,0.44440835,64161.0,64160.0,4e-05]
[1724547380191,0.36651535,64161.0,64160.0,0.077934]
[1724547380795,0.44440835,64161.0,64160.0,0.077934]
[1724547381193,0.44440835,64161.0,64160.0,4e-05]
[1724547384496,0.36651535,64161.0,64160.0,0.077934]
[1724547384696,0.36084,64161.0,64160.0,0.077934]
[1724547384896,4e-05,64161.0,64160.0,0.077934]
[1724547385416,4e-05,64161.0,64160.0,0.140128]
[1724547385894,4e-05,64161.0,64160.0,0.10228698]
[1724547386508,4e-05,64161.0,64160.0,0.10228699]
[1724547389498,4e-05,64161.0,64160.0,0.1081534]
[1724547390802,0.00023379,64171.0,64160.0,0.1081534]
[1724547390803,0.00023379,64171.0,64160.0,0.8978194]
[1724547391097,0.00023379,64171.0,64170.0,0.04660714]
[1724547391399,0.00023379,64171.0,64170.0,0.077882]
[1724547391595,0.00023379,64171.0,64170.0,0.077922]
[1724547392694,0.07757976,64171.0,64170.0,0.077922]
[1724547392894,0.00023379,64171.0,64170.0,0.077922]
[1724547393290,0.00023379,64171.0,64170.0,4e-05]
[1724547393899,0.07811479,64171.0,64170.0,4e-05]
[1724547395059,0.17093949,64171.0,64170.0,4e-05]
[1724547395196,0.43891479,64171.0,64170.0,4e-05]
[1724547396304,0.53177147,64171.0,64170.0,4e-05]
[1724547396898,0.43891479,64171.0,64170.0,4e-05]
[1724547398005,0.07811479,64171.0,64170.0,4e-05]
[1724547398325,0.43891479,64171.0,64170.0,4e-05]
[1724547404712,0.90643479,64171.0,64170.0,4e-05]
[1724547404903,1.02246809,64171.0,64170.0,4e-05]
[1724547405406,0.66166809,64171.0,64170.0,4e-05]
[1724547405604,1.05254223,64171.0,64170.0,4e-05]
[1724547405804,1.05254223,64171.0,64152.0,0.3608]
[1724547405805,0.077895,64160.0,64152.0,0.3608]
[1724547406105,0.46878268,64159.0,64155.0,0.07798]
[1724547406407,0.20757855,64158.0,64155.0,0.07798]
[1724547406611,4e-05,64156.0,64155.0,0.07798]
[1724547406906,0.03012568,64156.0,64155.0,0.07798]
[1724547407210,0.10802468,64156.0,64155.0,8e-05]
[1724547407411,0.14616544,64156.0,64155.0,8e-05]
[1724547407808,0.077939,64156.0,64155.0,8e-05]
[1724547408236,0.438739,64156.0,64155.0,8e-05]
[1724547408919,0.077939,64156.0,64155.0,8e-05]
[1724547409101,0.44441782,64156.0,64155.0,8e-05]
[1724547419722,0.08361782,64156.0,64155.0,8e-05]
[1724547420024,0.44441782,64156.0,64155.0,8e-05]
[1724547422718,0.52231682,64156.0,64155.0,8e-05]
[1724547422920,0.00016663,64155.0,64139.0,0.04659715]
[1724547423128,0.00016663,64155.0,64138.0,0.0475]
[1724547423129,0.3608,64146.0,64144.0,0.077914]
[1724547424125,0.00012694,64145.0,64144.0,0.077914]
[1724547427132,0.00578706,64145.0,64144.0,0.077914]
[1724547431028,0.00582706,64145.0,64144.0,0.077914]
[1724547432328,0.00582706,64145.0,64144.0,0.12451115]
[1724547432645,0.00582706,64145.0,64144.0,0.077914]
[1724547433728,0.08582706,64145.0,64144.0,0.077914]
[1724547433928,0.08582706,64145.0,64144.0,0.12457407]
[1724547434122,0.08582706,64145.0,64144.0,0.077914]
[1724547436735,0.00582706,64145.0,64144.0,0.906394]
[1724547437037,0.00016694,64145.0,64144.0,0.906394]
[1724547438529,0.00016694,64145.0,64144.0,0.438714]
[1724547438733,0.00016694,64145.0,64144.0,0.906394]
[1724547440136,0.00016694,64145.0,64144.0,1.10868721]
[1724547440533,0.00016694,64145.0,64144.0,0.64100721]
[1724547440729,0.00016694,64145.0,64144.0,0.52229174]
[1724547440935,0.00016694,64145.0,64144.0,0.64100673]
[1724547442236,0.00016694,64145.0,64144.0,0.56326423]
[1724547443936,0.00016694,64145.0,64144.0,0.55742899]
[1724547445143,0.00016694,64145.0,64144.0,0.63527116]
[1724547446245,0.00016694,64145.0,64144.0,0.55742899]
[1724547446540,0.00016694,64145.0,64144.0,0.438714]
[1724547447440,0.00016694,64145.0,64144.0,0.59446605]
[1724547447651,0.00023379,64157.0,64156.0,0.157899]
[1724547447938,0.00023379,64157.0,64156.0,0.58096514]
[1724547447939,0.00584721,64157.0,64156.0,0.58096514]
[1724547448141,0.00023379,64157.0,64156.0,0.58096514]
[1724547449137,0.00023379,64157.0,64156.0,0.518699]
[1724547449942,0.00023379,64157.0,64156.0,0.157899]
[1724547450452,0.00023379,64157.0,64156.0,0.518699]
[1724547451345,0.00607405,64157.0,64156.0,0.54305439]
[1724547451644,0.00023379,64157.0,64156.0,0.54305439]
[1724547452256,0.00023379,64157.0,64156.0,0.518699]
[1724547452512,0.00023379,64157.0,64156.0,0.54305407]
[1724547452835,0.00023379,64157.0,64156.0,0.518699]
[1724547453456,0.00590194,64157.0,64156.0,0.518699]
[1724547453741,0.00023379,64157.0,64156.0,0.518699]
[1724547453948,0.00023379,64157.0,64156.0,0.543054]
[1724547454949,0.00023379,64157.0,64156.0,0.518699]
[1724547455342,0.00584916,64157.0,64156.0,0.518699]
[1724547455541,0.00023379,64157.0,64156.0,0.518699]
[1724547455864,0.00023379,64157.0,64156.0,0.518739]
[1724547456240,0.00023379,64157.0,64156.0,0.157939]
[1724547456443,0.05,64169.0,64156.0,1.58286216]
[1724547456641,0.3608,64175.0,64174.0,0.077877]
[1724547457339,0.36661441,64175.0,64174.0,0.077917]
[1724547458751,0.36661441,64175.0,64174.0,0.157917]
[1724547458950,0.4348298,64175.0,64174.0,0.157917]
[1724547459149,0.39669522,64175.0,64174.0,0.157917]
[1724547460943,0.03589522,64175.0,64174.0,0.157917]
[1724547462051,0.00581441,64175.0,64174.0,0.157917]
[1724547462250,0.04623379,64181.0,64180.0,0.07787]
[1724547462849,0.05195785,64181.0,64180.0,0.07787]
[1724547463045,0.05195785,64181.0,64180.0,0.07791]
[1724547467359,0.07738815,64193.0,64180.0,0.90828]
[1724547467560,0.08,64197.0,64192.0,0.4408]
[1724547467561,0.1403,64196.0,64192.0,0.4408]
[1724547468257,0.1403,64196.0,64195.0,4e-05]
[1724547468863,0.1403,64196.0,64195.0,0.077892]
[1724547471065,0.25036915,64196.0,64195.0,0.077892]
[1724547471269,0.28848895,64196.0,64195.0,0.077892]
[1724547471520,0.28848895,64196.0,64195.0,0.07010281]
[1724547473563,0.28848895,64196.0,64192.0,0.3608]
[1724547473767,0.28138977,64193.0,64192.0,0.3608]